{"text_format":"1","workbook":"xlsx","n_sheets":2,"sheets":["MAL","Parametre"],"not_rendered":{"charts":0,"images":0,"macros":1,"external_links":0,"defined_names":0,"comments":0,"pivot_tables":0},"unopened":[],"bounds":{"document_bytes":16777216,"sheet_cells":100000,"rows_first":2000,"rows_last":500,"rows_between":2000,"halvings":0,"cell_chars":16384,"cell_head_chars":4096},"cells_cut":0,"cells_raw":0,"read":"whole","date_system":"1900"}

{"sheet":"MAL","index":0,"n_rows":36,"n_cols":14,"rows_kept":36,"cut":false,"hidden":false,"merged":[]}
[{"$f":"\"Dette er vår enkle mal\"","v":"Dette er vår enkle mal"}]
[{"$f":"\"Fanenavnet er  \" & MID(CELL(\"filnavn\"),FIND(\"]\",CELL(\"filnavn\"))+1,100)","v":"Fanenavnet er  MAL"},null,null,null,"Overført flex"]
[]
[]
["Ugedag","Dato","Fri pga.","mødetid","gåtid","timer","frokost","arb.timer","norm timetal","Flex +/-","akk. Flex",null,"F","Ferie"]
[{"$f":"TEXT(B6,\"dddd\")","v":"søndag"},"2019-09-01",{"$f":"HelligdagsNavn(B6,0,0)","v":""},null,null,null,null,null,null,null,{"$f":"G2+J6","v":0},null,"FF","Feriefri"]
["mandag",{"$f":"B6+1","v":"2019-09-02"},"",null,null,null,null,{"$f":"F7-G7","v":0},null,{"$f":"H7-I7","v":0},{"$f":"K6+J7","v":0},null,"S","Syg"]
["tirsdag",{"$f":"B7+1","v":"2019-09-03"},"",null,null,null,null,null,null,null,{"$f":"K7+J8","v":0},null,"BS","Barn Syg"]
["onsdag","2019-09-04","",null,null,null,null,null,null,null,0,null,"BF","Betalt fri"]
["torsdag","2019-09-05","",null,null,null,null,null,null,null,0,null,"K","Kursus"]
["fredag","2019-09-06","",null,null,null,null,null,null,null,0,null,"A","Afsp."]
["lørdag","2019-09-07","",null,null,null,null,null,null,null,0]
["søndag","2019-09-08","",null,null,null,null,null,null,null,0]
["mandag","2019-09-09","",null,null,null,null,null,null,null,0]
["tirsdag","2019-09-10","",null,null,null,null,null,null,null,0]
["onsdag","2019-09-11","",null,null,null,null,null,null,null,0]
["torsdag","2019-09-12","",null,null,null,null,null,null,null,0]
["fredag","2019-09-13","",null,null,null,null,null,null,null,0]
["lørdag","2019-09-14","",null,null,null,null,null,null,null,0]
["søndag","2019-09-15","",null,null,null,null,null,null,null,0]
["mandag","2019-09-16","",null,null,null,null,null,null,null,0]
["tirsdag","2019-09-17","",null,null,null,null,null,null,null,0]
["onsdag","2019-09-18","",null,null,null,null,null,null,null,0]
["torsdag","2019-09-19","",null,null,null,null,null,null,null,0]
["fredag","2019-09-20","",null,null,null,null,null,null,null,0]
["lørdag","2019-09-21","",null,null,null,null,null,null,null,0]
["søndag","2019-09-22","",null,null,null,null,null,null,null,0]
["mandag","2019-09-23","",null,null,null,null,null,null,null,0]
["tirsdag","2019-09-24","",null,null,null,null,null,null,null,0]
["onsdag","2019-09-25","",null,null,null,null,null,null,null,0]
["torsdag","2019-09-26","",null,null,null,null,null,null,null,0]
["fredag","2019-09-27","",null,null,null,null,null,null,null,0]
["lørdag","2019-09-28","",null,null,null,null,null,null,null,0]
["søndag","2019-09-29","",null,null,null,null,null,null,null,0]
["mandag","2019-09-30","",null,null,null,null,null,null,null,0]
[null,null,"",null,null,null,null,null,null,null,0]

{"sheet":"Parametre","index":1,"n_rows":9,"n_cols":2,"rows_kept":9,"cut":false,"hidden":false,"merged":[]}
["Fra år",2017]
["Til år",2018]
["Skilletegn","_"]
["Fra måned",1]
["Til måned",1]
["Beskr","Salg_"]
["Ark som skal kopieres","MAL"]
[]
["Eksempelnavn",{"$f":"B6 & B1 & B3 & TEXT(B4,\"00\")","v":"Salg_2017_01"}]